bitfinex-derivatives/quotes_SOLF0:USTF0_20241021
["timestamp","ask_amount","ask_price","bid_price","bid_amount"]
[1729474557017,2.9501,169.53,169.41,5.22]
[1729474557221,2.9501,169.53,169.47,2.951]
[1729474558021,2.9501,169.53,169.41,5.22]
[1729474559222,2.9501,169.53,169.46,2.9511]
[1729474560625,2.9501,169.53,169.47,2.951]
[1729474560818,2.9499,169.54,169.47,2.951]
[1729474562921,2.9499,169.54,169.45,3.01808038]
[1729474563123,6.16092768,169.74,169.39,1.2368]
[1729474563329,3.953,169.87,169.52,35.44]
[1729474563518,6.8544781,169.87,169.54,17.71]
[1729474563720,2.945,169.82,169.56,17.71]
[1729474563930,2.945,169.82,169.57,1.47635592]
[1729474564121,2.9448,169.84,169.67,2.9476]
[1729474564319,17.73,169.86,169.68,6.68]
[1729474564629,17.73,169.86,169.69,6.68]
[1729474565125,2.9448,169.83,169.72,2.9467]
[1729474565623,17.73,169.86,169.76,2.946]
[1729474565821,17.73,169.86,169.69,6.68]
[1729474566223,2.9449,169.83,169.72,2.9467]
[1729474566430,17.73,169.81,169.68,6.68]
[1729474566621,17.73,169.81,169.67,6.68]
[1729474566928,20.6752,169.81,169.71,2.9469]
[1729474569129,17.73,169.81,169.66,6.68]
[1729474569334,24.41,169.81,169.66,6.68]
[1729474569932,17.73,169.84,169.66,6.68]
[1729474570122,24.41,169.83,169.66,6.68]
[1729474570835,6.8544781,169.87,169.66,6.68]
[1729474570836,2.9443,169.86,169.66,6.68]
[1729474571029,24.41,169.85,169.66,6.68]
[1729474572028,17.73,169.85,169.66,6.68]
[1729474572328,6.66,169.84,169.67,1.2368]
[1729474573537,6.66,169.84,169.78,2.9456]
[1729474576836,6.66,169.84,169.67,1.2368]
[1729474577141,2.9448,169.83,169.71,6.66]
[1729474577739,24.39,169.84,169.75,2.946]
[1729474577939,2.945,169.82,169.75,2.946]
[1729474578434,2.945,169.82,169.71,6.66]
[1729474578639,2.9448,169.83,169.76,2.946]
[1729474579139,9.6046,169.84,169.78,2.9456]
[1729474579533,6.66,169.84,169.71,6.66]
[1729474580437,9.6047,169.84,169.78,2.9455]
[1729474580626,2.9447,169.84,169.78,2.9455]
[1729474580929,3.953,169.87,169.71,6.66]
[1729474581533,6.8972,169.87,169.8,2.9452]
[1729474581937,6.8972,169.87,169.75,2.92179088]
[1729474582138,6.8972,169.87,169.71,6.66]
[1729474582341,6.8972,169.87,169.75,2.9461]
[1729474582541,6.8972,169.87,169.75,2.9830975]
[1729474582729,6.8972,169.87,169.71,6.66]
[1729474583533,3.953,169.87,169.71,6.66]
[1729474584938,3.953,169.87,169.81,2.9451]
[1729474585744,3.953,169.87,169.77,2.91567528]
[1729474586537,6.8971,169.87,169.8,2.9452]
[1729474586948,3.953,169.87,169.77,2.91567528]
[1729474587243,3.953,169.87,169.76,6.66]
[1729474587446,3.953,169.87,169.81,2.945]
[1729474588452,3.953,169.87,169.78,2.95169525]
[1729474588649,3.953,169.87,169.76,6.66]
[1729474589043,3.953,169.87,169.77,6.66]
[1729474589441,0.2,170.0,169.93,2.9429]
[1729474589645,7.36,170.19,169.85,63.64]
[1729474589851,21.5416,170.13,169.86,0.561]
[1729474590148,17.73,170.11,169.86,3.55612541]
[1729474590447,17.73,170.11,169.83,7.36]
[1729474590754,2.9417,170.01,169.83,10.32301163]
[1729474590951,11.1716,170.0,169.83,10.32301163]
[1729474591448,11.1716,170.0,169.88,2.9439]
[1729474591654,11.1716,170.0,169.83,10.32301163]
[1729474592152,11.1716,170.0,169.92,2.9431]
[1729474592351,28.9016,170.0,169.78,7.921]
[1729474592546,28.9016,170.0,169.85,2.9443]
[1729474592746,28.9016,170.0,169.78,10.85013012]
[1729474594048,28.9016,170.0,169.79,1.08239588]
[1729474594253,2.9424,169.97,169.79,1.08239588]
[1729474594447,2.9424,169.97,169.78,10.85013012]
[1729474594653,7.36,169.96,169.79,1.08238182]
[1729474594852,7.36,169.96,169.79,2.35538182]
[1729474595054,25.09,169.96,169.79,1.273]
[1729474595250,25.09,169.96,169.78,10.85013012]
[1729474595251,25.09,169.96,169.78,2.92913012]
[1729474595553,2.9438,169.89,169.81,2.9451]
[1729474595758,10.0309,169.88,169.75,2.87323346]
[1729474595956,8.6182,169.87,169.75,2.87323346]
[1729474596148,8.6182,169.87,169.74,7.36]
[1729474596455,2.9443,169.86,169.78,2.9455]
[1729474596753,8.6182,169.87,169.75,2.88043731]
[1729474596950,11.5623,169.87,169.79,2.9454]
[1729474597953,2.9445,169.85,169.72,7.36]
[1729474598554,2.9445,169.85,169.78,2.9455]
[1729474599952,2.9445,169.85,169.79,2.9454]
[1729474603050,8.6182,169.87,169.75,2.97743821]
[1729474603252,8.6182,169.87,169.71,1.8385]
[1729474604057,11.5625,169.87,169.71,1.8385]
[1729474604454,2.9445,169.85,169.78,2.9456]
[1729474604761,8.6182,169.87,169.75,2.95003305]
[1729474604955,8.6182,169.87,169.71,1.8385]
[1729474604956,11.5625,169.87,169.79,2.9453]
[1729474605160,7.36,169.86,169.76,2.8772473]
[1729474605359,7.36,169.86,169.71,1.8385]
[1729474605962,2.9445,169.85,169.79,2.9455]
[1729474607156,7.36,169.86,169.76,2.964363]
[1729474607157,25.09,169.86,169.76,2.964363]
[1729474607466,2.945,169.82,169.76,2.946]
[1729474607658,25.09,169.86,169.69,7.36]
[1729474607853,25.09,169.86,169.67,1.8411]
[1729474608056,25.09,169.86,169.66,2.92088071]
[1729474608361,2.9463,169.75,169.69,2.9472]
[1729474608562,9.953,169.74,169.69,2.9472]
[1729474608764,9.953,169.74,169.61,1.8411]
[1729474608954,12.8994,169.74,169.61,1.8411]
[1729474609153,9.953,169.74,169.61,1.8411]
[1729474609550,7.36,169.78,169.61,1.8411]
[1729474609753,7.36,169.78,169.61,4.78963619]
[1729474609958,7.36,169.78,169.62,1.08335773]
[1729474610559,7.36,169.78,169.62,2.55731373]
[1729474610759,7.36,169.78,169.63,1.08335773]
[1729474611161,7.36,169.78,169.63,2.55731373]
[1729474611466,7.36,169.78,169.64,1.08335773]
[1729474611664,7.36,169.78,169.65,7.02]
[1729474612359,2.593,169.81,169.65,7.02]
[1729474612862,2.593,169.81,169.69,2.9471]
[1729474613064,2.593,169.81,169.65,8.4937838]
[1729474613667,2.9456,169.79,169.65,8.4937838]
[1729474613870,2.593,169.81,169.65,7.02]
[1729474614263,2.593,169.81,169.64,344.87662141]
[1729474614657,2.593,169.81,169.66,2.9476]
[1729474614968,2.593,169.81,169.58,7.02]
[1729474615357,2.9475,169.68,169.61,2.9486]
[1729474615658,9.5957,169.67,169.61,2.9486]
[1729474616166,9.5957,169.67,169.58,7.02]
[1729474616362,9.5957,169.67,169.54,7.02]
[1729474616762,9.5957,169.67,169.54,9.97224153]
[1729474617368,9.5957,169.67,169.61,2.9486]
[1729474617564,9.5957,169.67,169.54,9.97224153]
[1729474618070,2.948,169.65,169.58,2.9491]
[1729474618270,9.5957,169.67,169.54,2.95224153]
[1729474618465,9.5957,169.67,169.53,1.2818]
[1729474618773,2.9481,169.65,169.58,2.9491]
[1729474619474,2.9483,169.63,169.57,2.9493]
[1729474620167,2.9486,169.62,169.55,2.9496]
[1729474620363,7.02,169.62,169.48,2.99488191]
[1729474620563,1.2403,169.61,169.43,7.02]
[1729474620865,1.2403,169.61,169.4,63.66]
[1729474621067,1.2403,169.61,169.37,351.97224153]
[1729474621261,1.2403,169.61,169.42,2.9519]
[1729474621460,1.2403,169.61,169.37,2.95224153]
[1729474621767,2.9516,169.44,169.32,1.2816]
[1729474621963,7.02,169.43,169.33,2.96663985]
[1729474622163,7.02,169.43,169.29,7.02]
[1729474622164,7.02,169.42,169.29,7.02]
[1729474622365,9.9719,169.42,169.29,7.02]
[1729474622563,7.02,169.42,169.29,7.02]
[1729474622764,7.02,169.42,169.29,10.02237183]
[1729474624166,7.02,169.41,169.29,10.02237183]
[1729474624874,1.3451,169.43,169.29,10.02237183]
[1729474626772,1.3451,169.43,169.38,2.9525]
[1729474626976,7.04,169.44,169.29,10.02237183]
[1729474627283,7.04,169.46,169.3,8.12550072]
[1729474627570,7.04,169.46,169.3,7.04]
[1729474627968,7.04,169.46,169.31,1.08546975]
[1729474628170,7.04,169.46,169.31,6.4021254]
[1729474628473,66.2903,169.48,169.32,2.36866975]
[1729474628778,8.05,169.48,169.33,1.08546975]
[1729474628968,8.05,169.48,169.33,4.60492047]
[1729474629164,1.2989,169.53,169.34,1.08546975]
[1729474629372,2.6228,169.53,169.35,8.17667059]
[1729474629675,6.7,169.52,169.36,1.47667059]
[1729474630475,6.7,169.52,169.37,1.47643447]
[1729474630678,6.7,169.52,169.38,1.47643447]
[1729474630875,1.3096,169.54,169.35,9.06229515]
[1729474630876,8.0096,169.54,169.39,1.47643447]
[1729474631173,17.73,169.62,169.4,8.17643447]
[1729474631174,6.7,169.58,169.4,8.17643447]
[1729474631370,6.7,169.58,169.41,3.84549963]
[1729474631576,6.7,169.58,169.52,2.95]
[1729474632967,6.7,169.58,169.47,6.7]
[1729474632968,6.7,169.58,169.53,2.95]
[1729474634574,6.7,169.58,169.51,2.9502]
[1729474634978,6.7,169.58,169.47,6.7]
[1729474635178,6.7,169.58,169.51,2.9503]
[1729474635678,2.9497,169.55,169.48,2.9507]
[1729474635875,6.7,169.58,169.44,6.7]
[1729474636375,9.6493,169.58,169.44,6.7]
[1729474636975,6.7,169.58,169.44,6.7]
[1729474637180,6.7,169.57,169.44,6.7]
[1729474637378,6.7,169.58,169.44,6.7]
[1729474638669,6.7,169.58,169.51,2.9502]
[1729474640280,6.7,169.58,169.52,2.9501]
[1729474642477,9.6492,169.58,169.52,2.9501]
[1729474644585,2.9496,169.56,169.5,2.9504]
[1729474645685,2.95,169.54,169.48,2.9508]
[1729474645880,6.7,169.58,169.43,6.38]
[1729474646386,2.9495,169.56,169.5,2.9505]
[1729474648682,6.7,169.58,169.43,6.38]
[1729474649587,2.9494,169.57,169.43,6.38]
[1729474650682,2.9494,169.57,169.5,2.9504]
[1729474651081,6.7,169.58,169.43,6.38]
[1729474651287,6.7,169.58,169.49,2.9507]
[1729474651488,6.7,169.58,169.43,6.38]
[1729474651881,2.9496,169.56,169.5,2.9505]
[1729474652188,6.7,169.58,169.43,6.38]
[1729474652582,2.9493,169.57,169.51,2.9502]
[1729474652784,6.7,169.58,169.43,6.38]
[1729474653687,9.6493,169.58,169.51,2.9502]
[1729474654483,6.7,169.58,169.51,2.9502]
[1729474654685,2.9493,169.57,169.51,2.9502]
[1729474654881,6.7,169.58,169.43,6.38]
[1729474655080,6.7,169.58,169.52,2.9501]
[1729474655282,1.29,169.61,169.5,2.99735807]
[1729474655496,6.38,169.6,169.43,6.38]
[1729474655697,6.38,169.59,169.53,2.95]
[1729474655987,6.38,169.59,169.5,2.97581133]
[1729474656188,6.38,169.59,169.43,6.38]
[1729474656394,2.9494,169.57,169.51,2.9502]
[1729474656694,2.9494,169.57,169.43,6.38]
[1729474657393,2.9494,169.57,169.51,2.9502]
[1729474659587,6.38,169.58,169.51,2.9502]
[1729474659793,2.9496,169.56,169.51,2.9502]
[1729474659990,6.38,169.58,169.5,2.9505]
[1729474660398,2.9497,169.55,169.5,2.9505]
[1729474660998,2.9495,169.56,169.43,6.38]
[1729474662995,2.9495,169.56,169.5,2.9504]
[1729474663195,2.9495,169.56,169.5,5.90879684]
[1729474663603,2.9495,169.56,169.5,2.9504]
[1729474663801,2.9495,169.56,169.5,5.83618728]
[1729474665607,2.9495,169.56,169.51,2.9504]
[1729474667812,2.9494,169.57,169.52,2.95]
[1729474668315,9.3292,169.58,169.54,2.9498]
[1729474669418,6.38,169.58,169.43,6.38]
[1729474669616,6.38,169.58,169.52,2.9501]
[1729474669920,6.38,169.58,169.5,3.00975482]
[1729474670118,6.38,169.58,169.43,6.38]
[1729474670616,2.9495,169.57,169.52,2.9501]
[1729474670816,6.38,169.58,169.52,2.9501]
[1729474671012,6.38,169.58,169.5,2.94452428]
[1729474671214,2.9493,169.57,169.53,2.95]
[1729474671718,9.3293,169.58,169.52,2.9501]
[1729474671914,9.3293,169.58,169.5,3.0189048]
[1729474672109,9.3293,169.58,169.43,6.38]
[1729474672314,1.29,169.61,169.43,6.38]
[1729474672515,8.9689,169.6,169.43,12.2834]
[1729474673012,8.969,169.59,169.43,12.2834]
[1729474673413,8.969,169.59,169.53,2.9499]
[1729474673617,8.969,169.59,169.53,5.95215741]
[1729474673813,8.969,169.59,169.53,2.9499]
[1729474674215,6.02,169.59,169.43,12.2834]
[1729474674414,2.9492,169.58,169.53,2.95]
[1729474674716,2.9492,169.58,169.52,2.95828883]
[1729474675016,2.9492,169.58,169.52,2.9501]
[1729474675214,2.9492,169.58,169.52,5.88330608]
[1729474675414,6.02,169.59,169.43,12.2834]
[1729474675615,2.9495,169.57,169.51,2.9503]
[1729474675912,6.02,169.59,169.52,2.89425405]
[1729474676116,2.9492,169.58,169.52,2.9501]
[1729474676313,2.9492,169.58,169.52,5.90425756]
[1729474676710,2.9492,169.58,169.53,2.95]
[1729474680317,23.75,169.59,169.41,4.20066148]
[1729474680522,23.75,169.59,169.42,6.02]
[1729474680917,23.75,169.59,169.41,4.20066148]
[1729474681117,23.75,169.59,169.41,10.22066148]
[1729474681521,2.9501,169.53,169.47,2.9509]
[1729474681722,6.02,169.52,169.47,2.9509]
[1729474683521,6.02,169.52,169.45,2.9513]
[1729474683522,2.9507,169.5,169.45,2.9513]
[1729474684529,2.5797,169.51,169.41,2.91656148]
[1729474684821,2.5797,169.51,169.36,6.02]
[1729474685019,2.5797,169.51,169.37,2.9531923]
[1729474685220,2.5797,169.51,169.38,2.95331398]
[1729474685421,2.5797,169.51,169.36,6.02]
[1729474685618,1.3083,169.5,169.37,2.95332844]
[1729474685818,1.3083,169.5,169.38,1.47666804]
[1729474686018,1.3083,169.5,169.36,6.02]
[1729474686322,2.9513,169.46,169.4,2.9522]
[1729474686521,5.72,169.45,169.41,3.02002881]
[1729474687225,5.72,169.45,169.41,5.97202881]
[1729474687529,5.72,169.45,169.38,2.36248094]
[1729474687818,5.72,169.45,169.41,2.9519]
[1729474688025,5.72,169.45,169.42,2.97869091]
[1729474688223,5.72,169.45,169.37,6.62706809]
[1729474688425,5.72,169.45,169.38,5.31548711]
[1729474688619,5.72,169.45,169.43,2.9518]
[1729474688822,5.52,169.45,169.43,2.9518]
[1729474689223,1.3083,169.5,169.43,2.9518]
[1729474689424,5.72,169.49,169.43,2.9518]
[1729474689722,5.72,169.49,169.42,2.97544293]
[1729474689723,1.3083,169.5,169.45,2.9513]
[1729474689925,5.72,169.5,169.42,2.97544293]
[1729474690122,5.72,169.5,169.43,2.9526537]
[1729474690423,5.72,169.5,169.45,2.9513]
[1729474690619,5.72,169.5,169.41,8.74327679]
[1729474690820,5.72,169.5,169.42,5.31436951]
[1729474691122,5.72,169.5,169.43,5.3143758]
[1729474691328,5.72,169.5,169.44,2.9524275]
[1729474691527,5.72,169.5,169.41,8.74327679]
[1729474691726,5.72,169.5,169.42,5.31448686]
[1729474691920,5.72,169.5,169.46,2.9512]
[1729474692828,5.72,169.5,169.42,2.36203312]
[1729474693019,5.72,169.5,169.43,2.9525409]
[1729474693328,5.72,169.5,169.38,5.72]
[1729474693531,5.72,169.5,169.39,9.58492147]
[1729474693722,5.72,169.5,169.39,2.95980563]
[1729474693922,2.9508,169.49,169.43,2.9516]
[1729474694229,2.9508,169.49,169.43,5.91937558]
[1729474694425,2.9508,169.49,169.43,2.9516]
[1729474694926,2.9508,169.49,169.43,5.85856777]
[1729474695324,2.9509,169.48,169.43,5.85856777]
[1729474695725,2.9509,169.48,169.42,2.9519]
[1729474696032,5.72,169.5,169.39,2.89596841]
[1729474696234,1.2534,169.47,169.4,5.9055704]
[1729474696524,1.2534,169.47,169.41,5.92639537]
[1729474696830,1.2534,169.47,169.42,2.9533704]
[1729474697026,1.2534,169.47,169.41,3.00520567]
[1729474697225,1.2534,169.47,169.42,2.95315108]
[1729474697529,1.2534,169.47,169.36,4.27485229]
[1729474697727,1.2534,169.47,169.4,2.9523]
[1729474697927,1.2534,169.47,169.41,8.25171227]
[1729474698123,1.2534,169.47,169.42,1.47655327]
[1729474698328,1.2534,169.47,169.43,1.47655327]
[1729474698527,1.2534,169.47,169.42,2.9519]
[1729474698724,1.2534,169.47,169.43,2.9531107]
[1729474698928,1.2534,169.47,169.42,2.9519]
[1729474699232,1.2534,169.47,169.43,2.95307224]
[1729474699433,1.2534,169.47,169.42,2.9519]
[1729474699733,1.2534,169.47,169.43,2.95307544]
[1729474699927,1.2534,169.47,169.42,2.9519]
[1729474700128,1.2534,169.47,169.43,2.95307544]
[1729474700331,1.2534,169.47,169.42,2.9519]
[1729474700528,1.2534,169.47,169.43,1.47653509]
[1729474700726,1.2534,169.47,169.42,2.9519]
[1729474700921,1.2534,169.47,169.43,1.4765375]
[1729474701125,1.2534,169.47,169.43,2.953075]
[1729474702331,2.9513,169.46,169.43,2.953075]
[1729474703327,8.6716,169.45,169.43,2.953075]
[1729474704031,2.9516,169.44,169.38,2.9526]
[1729474704236,5.72,169.45,169.34,2.5281]
[1729474704429,1.2289,169.43,169.35,6.63698142]
[1729474704736,1.2289,169.43,169.3,4.80490591]
[1729474704737,2.9525,169.39,169.3,4.80490591]
[1729474705030,8.6725,169.39,169.31,6.63896503]
[1729474705228,8.6725,169.39,169.32,6.63896503]
[1729474705432,8.6725,169.39,169.33,2.36320155]
[1729474705632,8.6725,169.39,169.3,4.80490591]
[1729474705834,8.6725,169.39,169.33,2.9534]
[1729474706032,5.72,169.39,169.3,4.80490591]
[1729474706232,5.72,169.39,169.31,2.36347231]
[1729474706433,5.72,169.39,169.36,2.953]
[1729474706738,5.72,169.39,169.31,6.63628421]
[1729474706939,5.72,169.39,169.32,6.63628421]
[1729474707130,5.72,169.39,169.33,2.36335969]
[1729474707434,6.9489,169.43,169.3,4.80490591]
[1729474707639,6.9489,169.43,169.31,6.63371372]
[1729474707830,6.9489,169.43,169.32,6.63371372]
[1729474708037,6.9489,169.43,169.33,7.97491372]
[1729474708336,6.9489,169.43,169.33,1.3412]
[1729474708532,6.9489,169.43,169.34,2.36292183]
[1729474708738,6.9489,169.43,169.33,1.3412]
[1729474708937,9.9007,169.43,169.37,2.9527]
[1729474711934,2.9522,169.41,169.36,2.953]
[1729474714543,2.9525,169.39,169.34,2.9532]
[1729474718442,2.9525,169.39,169.3,4.23930591]
[1729474721946,2.9525,169.39,169.34,2.9533]
[1729474722440,2.9526,169.38,169.33,2.9534]
[1729474723248,2.9526,169.38,169.32,2.9536]
[1729474723443,8.3526,169.38,169.32,2.9536]
[1729474724243,2.9532,169.35,169.3,5.95040591]
[1729474724442,2.9532,169.35,169.3,2.99640591]
[1729474724645,2.9532,169.35,169.26,1.8145]
[1729474724947,2.9532,169.35,169.3,2.954]
[1729474725145,2.9532,169.35,169.26,4.74147223]
[1729474725345,2.9532,169.35,169.26,1.2466]
[1729474725848,2.9532,169.35,169.26,4.15554827]
[1729474726244,2.9532,169.35,169.29,2.954]
[1729474726541,4.2903,169.36,169.26,4.15554827]
[1729474727640,1.3373,169.36,169.26,4.15554827]
[1729474727935,1.3373,169.36,169.32,2.9536]
[1729474729545,1.3373,169.36,169.31,2.9537]
[1729474730845,1.3373,169.36,169.26,4.15554827]
[1729474731054,1.2829,169.41,169.27,2.04639366]
[1729474731241,6.6829,169.41,169.28,2.95479447]
[1729474731445,6.6829,169.41,169.29,6.87749366]
[1729474731650,6.6829,169.41,169.3,1.2857]
[1729474731852,5.4,169.41,169.3,1.2857]
[1729474732948,5.4,169.41,169.33,2.9535]
[1729474733150,5.4,169.41,169.3,1.2857]
[1729474733555,4.2699,169.45,169.39,2.9523]
[1729474733753,5.4,169.44,169.4,2.99806411]
[1729474735353,5.4,169.44,169.4,2.9522]
[1729474735657,5.4,169.44,169.41,3.02434822]
[1729474738158,1.3183,169.45,169.41,3.02434822]
[1729474738863,1.3183,169.45,169.41,2.9521]
[1729474739055,1.3183,169.45,169.42,2.8870255]
[1729474739763,1.3183,169.45,169.41,2.9521]
[1729474739963,1.3183,169.45,169.35,1.299]
[1729474740157,1.3183,169.45,169.37,2.9527]
[1729474740359,1.3183,169.45,169.38,2.98123184]
[1729474740563,1.3183,169.45,169.35,1.299]
[1729474740756,1.3183,169.45,169.35,4.28348033]
[1729474740957,1.3183,169.45,169.35,1.299]
[1729474741164,1.3183,169.45,169.38,2.9526]
[1729474741364,1.3183,169.45,169.39,2.91613882]
[1729474741664,1.3183,169.45,169.35,1.299]
[1729474742165,1.3183,169.45,169.35,4.29694664]
[1729474742664,1.3183,169.45,169.39,2.9523]
[1729474742865,4.2697,169.45,169.39,2.9523]
[1729474743557,1.3183,169.45,169.35,4.29694664]
[1729474744266,6.4383,169.45,169.35,4.29694664]
[1729474744453,6.4383,169.45,169.36,1.47685592]
[1729474744654,6.4383,169.45,169.35,4.29694664]
[1729474745455,1.3183,169.45,169.41,2.9521]
[1729474746263,1.3183,169.45,169.35,4.29694664]
[1729474746461,4.2698,169.45,169.35,4.29694664]
[1729474747467,4.2698,169.45,169.39,2.9523]
[1729474747660,1.3183,169.45,169.36,1.4769247]
[1729474747964,1.3183,169.45,169.35,4.29694664]
[1729474748171,1.3183,169.45,169.41,2.9521]
[1729474748464,1.3183,169.45,169.35,4.29694664]
[1729474748657,1.3183,169.45,169.41,2.952]
[1729474748856,5.12,169.46,169.41,2.952]
[1729474751656,5.12,169.46,169.37,1.4769625]
[1729474751862,8.0714,169.46,169.4,2.9521]
[1729474754568,2.9516,169.44,169.38,2.9525]
[1729474755073,2.9516,169.44,169.37,2.9527]
[1729474755263,2.9519,169.43,169.35,4.29694664]
[1729474755464,5.12,169.46,169.36,2.953982]
[1729474755664,5.12,169.46,169.38,2.9525]
[1729474757068,2.9516,169.44,169.38,2.9525]
[1729474758267,8.0712,169.46,169.38,2.9526]
[1729474758465,8.0712,169.46,169.35,4.29694664]
[1729474758770,8.0712,169.46,169.36,2.95401296]
[1729474758972,8.0712,169.46,169.37,2.95401296]
[1729474759266,8.0712,169.46,169.35,4.29694664]
[1729474759267,1.2372,169.47,169.38,1.47700648]
[1729474759471,1.2372,169.47,169.39,2.95390158]
[1729474759668,1.2372,169.47,169.42,2.9518]
[1729474760464,1.2372,169.47,169.43,2.9517]
[1729474760667,2.9508,169.49,169.38,5.12]
[1729474760865,5.12,169.49,169.39,2.95350306]
[1729474761070,1.2695,169.5,169.4,2.95350306]
[1729474761267,1.2695,169.5,169.38,5.12]
[1729474761268,6.3895,169.5,169.41,2.95350306]
[1729474761462,6.3895,169.5,169.38,5.12]
[1729474761667,6.3895,169.5,169.39,2.95346672]
[1729474761873,9.3401,169.5,169.44,2.9515]
[1729474762075,9.3401,169.5,169.45,2.89773428]
[1729474762269,9.3401,169.5,169.39,2.36277081]
[1729474762469,9.3401,169.5,169.43,2.9516]
[1729474762668,9.3401,169.5,169.44,2.92667028]
[1729474762870,6.3895,169.5,169.44,2.92667028]
[1729474763067,9.3401,169.5,169.44,2.9515]
[1729474763374,9.3401,169.5,169.44,5.86931232]
[1729474765274,6.3895,169.5,169.37,1.2937]
[1729474765476,6.3895,169.5,169.38,10.43637724]
[1729474765676,1.3068,169.49,169.39,2.95351863]
[1729474765872,1.3068,169.49,169.4,1.476732]
[1729474766074,2.9511,169.47,169.42,2.9518]
[1729474769275,2.9511,169.47,169.41,2.9521]
[1729474769473,6.3895,169.5,169.37,6.4137]
[1729474769474,1.2695,169.5,169.37,6.4137]
[1729474769670,2.9508,169.49,169.38,2.95360113]
[1729474769870,2.9508,169.49,169.37,6.4137]
[1729474769871,2.9508,169.49,169.43,2.9516]
[1729474770072,2.9508,169.49,169.44,2.96800743]
[1729474770372,4.88,169.48,169.43,2.9516]
[1729474770571,4.88,169.48,169.37,6.4137]
[1729474771177,4.88,169.48,169.38,2.95351701]
[1729474771384,7.8309,169.48,169.39,2.95351701]
[1729474771577,7.8309,169.48,169.4,1.47674888]
[1729474771768,7.8309,169.48,169.4,2.9522]
[1729474771972,7.8309,169.48,169.41,1.47674897]
[1729474772173,7.8309,169.48,169.37,6.4137]
[1729474772372,7.8309,169.48,169.42,2.9518]
[1729474772882,7.8309,169.48,169.37,6.4137]
[1729474773180,4.88,169.48,169.38,2.95350678]
[1729474773382,4.88,169.48,169.39,2.95350678]
[1729474773675,4.88,169.48,169.4,2.95350678]
[1729474773870,4.88,169.48,169.43,2.9517]
[1729474774279,2.9508,169.49,169.43,2.9517]
[1729474774581,7.8308,169.49,169.43,2.9517]
[1729474774781,7.8308,169.49,169.44,2.91084938]
[1729474775374,7.8308,169.49,169.43,2.9517]
[1729474776381,2.9512,169.47,169.44,3.02068161]
[1729474776583,4.88,169.49,169.38,4.27259915]
[1729474776877,4.88,169.49,169.39,2.95333586]
[1729474777081,4.88,169.49,169.4,2.95333586]
[1729474777382,4.88,169.49,169.41,1.47666793]
[1729474777585,4.88,169.49,169.37,6.4137]
[1729474777880,2.9509,169.48,169.38,2.95332196]
[1729474778078,2.9509,169.48,169.39,2.95332196]
[1729474778382,2.9509,169.48,169.42,2.9518]
[1729474782979,2.9509,169.48,169.37,6.4137]
[1729474783186,2.9509,169.48,169.43,2.9517]
[1729474783578,2.9509,169.48,169.44,2.98719629]
[1729474783784,4.88,169.49,169.38,4.27082901]
[1729474784083,4.88,169.49,169.39,2.95324076]
[1729474784281,4.88,169.49,169.4,2.95324076]
[1729474784581,4.88,169.49,169.41,2.95324076]
[1729474784783,4.88,169.49,169.42,1.47662038]
[1729474784974,4.88,169.49,169.39,4.26897013]
[1729474785170,4.88,169.49,169.4,2.95304962]
[1729474785383,4.88,169.49,169.41,2.95304962]